fUSD/lending_fUSD_20240209
["ID","MTS","AMOUNT","RATE_DAILY","PERIOD"]
[313623098,1707487219865,-500.0,0.00041917,31]
[313623099,1707487219892,-500.0,0.00041917,31]
[313623100,1707487219919,-500.0,0.00041917,31]
[313623101,1707487219949,-500.0,0.00041917,31]
[313623102,1707487219977,-500.0,0.00041917,31]
[313623103,1707487220004,-500.0,0.00041917,31]
[313623104,1707487220031,-500.0,0.00041917,31]
[313623105,1707487220059,-667.56,0.00041917,31]
[313623106,1707487220088,-500.0,0.00041917,31]
[313623107,1707487220119,-500.0,0.00041917,31]
[313623108,1707487220147,-500.0,0.00041917,31]
[313623109,1707487220178,-500.0,0.00041917,31]
[313623110,1707487220327,-500.0,0.00041917,31]
[313623111,1707487220356,-190.75672501,0.00041917,31]
[313623112,1707487220387,-500.0,0.00041917,31]
[313623113,1707487220416,-500.0,0.00041917,31]
[313623114,1707487220444,-500.0,0.00041917,31]
[313623115,1707487220473,-500.0,0.00041917,31]
[313623116,1707487220502,-500.0,0.00041917,31]
[313623117,1707487220530,-500.0,0.00041917,31]
[313623118,1707487220558,-537.90042139,0.00041917,31]
[313623119,1707487220586,-508.19419451,0.00041917,31]
[313623120,1707487220615,-500.0,0.00041917,31]
[313623121,1707487220642,-500.0,0.00041917,31]
[313623122,1707487220671,-500.0,0.00041917,31]
[313623123,1707487220699,-500.0,0.00041917,31]
[313623124,1707487220729,-500.0,0.00041917,31]
[313623125,1707487220758,-500.0,0.00041917,31]
[313623126,1707487220788,-500.0,0.00041917,31]
[313623127,1707487220816,-504.99372578,0.00041917,31]
[313623128,1707487220845,-500.0,0.00041917,31]
[313623129,1707487220873,-500.0,0.00041917,31]
[313623130,1707487220901,-500.0,0.00041917,31]
[313623131,1707487220929,-500.0,0.00041917,31]
[313623132,1707487220959,-500.0,0.00041917,31]
[313623133,1707487220989,-500.0,0.00041917,31]
[313623134,1707487221017,-500.0,0.00041917,31]
[313623135,1707487221047,-476.34800278,0.00041917,31]
[313623136,1707487221075,-500.0,0.00041917,31]
[313623137,1707487221107,-506.25674817,0.00041917,31]
[313623138,1707487221134,-500.0,0.00041917,31]
[313623139,1707487221162,-500.0,0.00041917,31]
[313623140,1707487221191,-500.0,0.00041917,31]
[313623141,1707487221218,-500.0,0.00041917,31]
[313623142,1707487221245,-500.0,0.00041917,31]
[313623143,1707487221274,-500.0,0.00041917,31]
[313623144,1707487221303,-500.0,0.00041917,31]
[313623145,1707487221332,-500.0,0.00041917,31]
[313623146,1707487221360,-538.74,0.00041917,31]
[313623147,1707487221389,-500.0,0.00041917,31]
[313623148,1707487221418,-500.0,0.00041917,31]
[313623149,1707487221447,-500.0,0.00041917,31]
[313623150,1707487221477,-500.0,0.00041917,31]
[313623151,1707487221507,-192.42848216,0.00041917,31]
[313623152,1707487221535,-523.05697464,0.00041917,31]
[313623153,1707487221565,-500.0,0.00041917,31]
[313623154,1707487221599,-327.80530399,0.00041917,31]
[313623155,1707487221628,-500.0,0.00041917,31]
[313623156,1707487221656,-500.0,0.00041917,31]
[313623157,1707487221683,-500.0,0.00041917,31]
[313623158,1707487221710,-500.0,0.00041917,31]
[313623159,1707487221738,-500.0,0.00041917,31]
[313623160,1707487221766,-500.0,0.00041917,31]
[313623161,1707487221794,-500.0,0.00041917,31]
[313623162,1707487221823,-500.0,0.00041917,31]
[313623163,1707487221852,-791.57,0.00041917,31]
[313623164,1707487221884,-500.0,0.00041917,31]
[313623165,1707487221913,-514.45,0.00041917,31]
[313623166,1707487221944,-500.0,0.00041917,31]
[313623167,1707487221971,-500.0,0.00041917,31]
[313623168,1707487221998,-500.0,0.00041917,31]
[313623169,1707487222025,-500.0,0.00041917,31]
[313623170,1707487222053,-507.97156207,0.00041917,31]
[313623171,1707487222086,-500.0,0.00041917,31]
[313623172,1707487222113,-500.0,0.00041917,31]
[313623173,1707487222142,-500.0,0.00041917,31]
[313623174,1707487222169,-500.0,0.00041917,31]
[313623175,1707487222197,-426.48273935,0.00041917,31]
[313623176,1707487222224,-500.0,0.00041917,31]
[313623177,1707487222250,-500.0,0.00041917,31]
[313623178,1707487222279,-500.0,0.00041917,31]
[313623179,1707487222307,-500.0,0.00041917,31]
[313623180,1707487222336,-500.0,0.00041917,31]
[313623181,1707487222365,-150.0,0.00041917,31]
[313623182,1707487222392,-500.0,0.00041917,31]
[313623183,1707487222420,-882.64,0.00041917,31]
[313623184,1707487222449,-500.0,0.00041917,31]
[313623185,1707487222478,-500.0,0.00041917,31]
[313623186,1707487222507,-500.0,0.00041917,31]
[313623187,1707487222537,-500.0,0.00041917,31]
[313623188,1707487222566,-500.0,0.00041917,31]
[313623189,1707487222593,-500.0,0.00041917,31]
[313623190,1707487222619,-500.0,0.00041917,31]
[313623191,1707487222646,-500.0,0.00041917,31]
[313623192,1707487222674,-500.0,0.00041917,31]
[313623193,1707487222701,-500.0,0.00041917,31]
[313623194,1707487222728,-500.0,0.00041917,31]
[313623195,1707487222755,-500.0,0.00041917,31]
[313623196,1707487222781,-215.078496,0.00041917,31]
[313623197,1707487222812,-500.0,0.00041917,31]
[313623198,1707487222840,-500.0,0.00041917,31]
[313623199,1707487222868,-500.0,0.00041917,31]
[313623200,1707487223126,-500.0,0.00041917,31]
[313623201,1707487223154,-654.43,0.00041917,31]
[313623202,1707487223182,-500.0,0.00041917,31]
[313623203,1707487223210,-313.20817481,0.00041917,31]
[313623204,1707487223238,-500.0,0.00041917,31]
[313623205,1707487223269,-500.0,0.00041917,31]
[313623206,1707487223300,-503.59,0.00041917,31]
[313623207,1707487223328,-500.0,0.00041917,31]
[313623208,1707487223358,-500.0,0.00041917,31]
[313623209,1707487223389,-500.0,0.00041917,31]
[313623210,1707487223419,-500.0,0.00041917,30]
[313623211,1707487223449,-500.0,0.00041917,31]
[313623212,1707487223479,-500.0,0.00041917,31]
[313623213,1707487223508,-500.0,0.00041917,31]
[313623214,1707487223537,-500.0,0.00041917,31]
[313623215,1707487223570,-500.0,0.00041917,31]
[313623216,1707487223598,-500.0,0.00041917,31]
[313623217,1707487223626,-500.0,0.00041917,31]
[313623218,1707487223653,-500.0,0.00041917,31]
[313623219,1707487223680,-500.0,0.00041917,31]
[313623220,1707487223708,-500.0,0.00041917,31]
[313623221,1707487223735,-500.0,0.00041917,31]
[313623222,1707487223763,-500.0,0.00041917,31]
[313623223,1707487223790,-556.45,0.00041917,31]
[313623224,1707487223819,-500.0,0.00041917,31]
[313623225,1707487223846,-500.0,0.00041917,31]
[313623226,1707487223874,-500.0,0.00041917,31]
[313623227,1707487223901,-500.0,0.00041917,31]
[313623228,1707487223929,-500.0,0.00041917,31]
[313623229,1707487223956,-793.37,0.00041917,31]
[313623230,1707487223983,-500.0,0.00041917,31]
[313623231,1707487224011,-500.0,0.00041917,31]
[313623232,1707487224038,-500.0,0.00041917,31]
[313623233,1707487224067,-500.0,0.00041917,31]
[313623234,1707487224094,-767.91,0.00041917,31]
[313623235,1707487224126,-500.0,0.00041917,31]
[313623236,1707487224153,-675.64,0.00041917,31]
[313623237,1707487224181,-500.0,0.00041917,31]
[313623238,1707487224212,-500.0,0.00041917,31]
[313623239,1707487224240,-500.0,0.00041917,31]
[313623240,1707487224269,-566.47,0.00041917,31]
[313623241,1707487224303,-500.0,0.00041917,31]
[313623242,1707487224331,-959.36,0.00041917,31]
[313623243,1707487224360,-500.0,0.00041917,31]
[313623244,1707487224389,-500.0,0.00041917,31]
[313623245,1707487224417,-500.0,0.00041917,31]
[313623246,1707487224445,-500.0,0.00041917,31]
[313623247,1707487224473,-500.0,0.00041917,31]
[313623248,1707487224504,-500.0,0.00041917,31]
[313623250,1707487224533,-500.0,0.00041917,31]
[313623252,1707487224562,-500.0,0.00041917,31]
[313623253,1707487224590,-906.86,0.00041917,31]
[313623254,1707487224617,-500.0,0.00041917,31]
[313623255,1707487224645,-3115.29,0.00041917,31]
[313623256,1707487224672,-500.0,0.00041917,31]
[313623257,1707487224700,-540.08,0.00041917,31]
[313623258,1707487224728,-500.0,0.00041917,31]
[313623259,1707487224757,-518.84,0.00041917,31]
[313623260,1707487224786,-518.42,0.00041917,31]
[313623261,1707487224816,-500.0,0.00041917,31]
[313623262,1707487224845,-8148.69,0.00041917,31]
[313623263,1707487224875,-500.0,0.00041917,31]
[313623264,1707487224905,-792.43,0.00041917,31]
[313623265,1707487224939,-500.0,0.00041917,31]
[313623266,1707487224970,-500.0,0.00041917,31]
[313623267,1707487225001,-500.0,0.00041917,31]
[313623268,1707487225034,-562.48,0.00041917,31]
[313623269,1707487225070,-500.0,0.00041917,31]
[313623270,1707487225102,-2542.57,0.00041917,31]
[313623271,1707487225132,-500.0,0.00041917,31]
[313623272,1707487225163,-1246.8,0.00041917,31]
[313623273,1707487225230,-500.0,0.00041917,31]
[313623274,1707487225259,-500.0,0.00041917,31]
[313623275,1707487225290,-500.0,0.00041917,31]
[313623276,1707487225322,-776.48,0.00041917,31]
[313623277,1707487225351,-500.0,0.00041917,31]
[313623278,1707487225409,-500.0,0.00041917,31]
[313623279,1707487225442,-2162.48,0.00041917,31]
[313623280,1707487225474,-3129.95,0.00041917,31]
[313623281,1707487225504,-500.0,0.00041917,31]
[313623282,1707487225532,-677.1,0.00041917,31]
[313623283,1707487225564,-1314.52,0.00041917,31]
[313623284,1707487225593,-500.0,0.00041917,31]
[313623285,1707487225625,-1064.38,0.00041917,31]
[313623286,1707487225654,-1610.95,0.00041917,31]
[313623287,1707487225682,-500.0,0.00041917,31]
[313623288,1707487225711,-987.1,0.00041917,31]
[313623289,1707487225738,-500.0,0.00041917,31]
[313623290,1707487225767,-558.21,0.00041917,31]
[313623291,1707487225795,-468.12238796,0.00041917,31]
[313623292,1707487225830,-500.0,0.00041917,31]
[313623293,1707487225858,-500.0,0.00041917,31]
[313623294,1707487225890,-1288.44,0.00041917,31]
[313623295,1707487225918,-500.0,0.00041917,31]
[313623296,1707487225946,-3513.3,0.00041917,31]
[313623297,1707487225974,-923.0,0.00041917,31]
[313623298,1707487226001,-2977.12,0.00041917,31]
[313623299,1707487226030,-3585.81,0.00041917,31]
[313623300,1707487226059,-1111.32,0.00041917,31]
[313623301,1707487226086,-580.70654287,0.00041917,31]
[313623302,1707487226115,-500.0,0.00041917,31]
[313623303,1707487226143,-4092.82,0.00041917,31]
[313623304,1707487226173,-500.0,0.00041917,31]
[313623305,1707487226202,-500.0,0.00041917,31]
[313623306,1707487226230,-810.54,0.00041917,31]
[313623307,1707487226259,-1445.78,0.00041917,31]
[313623308,1707487226287,-512.71412592,0.00041917,31]
[313623309,1707487226317,-1968.03,0.00041917,31]
[313623310,1707487226343,-547.72006724,0.00041917,31]
[313623311,1707487226372,-2143.34,0.00041917,31]
[313623312,1707487226401,-500.0,0.00041917,31]
[313623313,1707487226429,-842.81,0.00041917,31]
[313623314,1707487226457,-4396.32,0.00041917,31]
[313623315,1707487226486,-500.0,0.00041917,31]
[313623316,1707487226514,-500.0,0.00041917,31]
[313623317,1707487226542,-500.0,0.00041917,31]
[313623318,1707487226571,-1531.14,0.00041917,31]
[313623319,1707487226599,-500.0,0.00041917,31]
[313623320,1707487226628,-3098.41,0.00041917,31]
[313623321,1707487226657,-500.0,0.00041917,31]
[313623322,1707487226690,-500.0,0.00041917,31]
[313623323,1707487226718,-3134.49,0.00041917,31]
[313623324,1707487226745,-298.35398079,0.00041917,31]
[313623325,1707487226781,-500.0,0.00041917,31]
[313623326,1707487226808,-500.0,0.00041917,31]
[313623327,1707487226835,-1285.67,0.00041917,31]
[313623328,1707487226864,-805.62,0.00041917,31]
[313623329,1707487226891,-850.45,0.00041917,31]
[313623330,1707487226920,-1725.82,0.00041917,31]
[313623331,1707487226951,-1105.94,0.00041917,31]
[313623332,1707487226982,-500.0,0.00041917,31]
[313623333,1707487227009,-500.0,0.00041917,31]
[313623334,1707487227037,-555.42,0.00041917,31]
[313623335,1707487227066,-500.0,0.00041917,31]
[313623336,1707487227094,-500.0,0.00041917,31]
[313623337,1707487227125,-600.94,0.00041917,31]
[313623338,1707487227153,-24179.07,0.00041917,31]
[313623339,1707487227182,-1181.34,0.00041917,31]
[313623340,1707487227210,-1991.35,0.00041917,31]
[313623341,1707487227238,-500.0,0.00041917,31]
[313623342,1707487227265,-609.11,0.00041917,31]
[313623343,1707487227293,-500.0,0.00041917,31]
[313623344,1707487227321,-2548.88,0.00041917,31]
[313623345,1707487227349,-500.0,0.00041917,31]
[313623346,1707487227377,-2801.13,0.00041917,31]
[313623347,1707487227405,-500.0,0.00041917,31]
[313623348,1707487227433,-565.44,0.00041917,31]
[313623349,1707487227461,-804.55,0.00041917,31]
[313623350,1707487227490,-500.0,0.00041917,31]
[313623351,1707487227519,-500.0,0.00041917,31]
[313623352,1707487227546,-601.69427579,0.00041917,31]
[313623353,1707487227576,-500.0,0.00041917,31]
[313623354,1707487227604,-696.66,0.00041917,31]
[313623355,1707487227632,-2278.6,0.00041917,31]
[313623356,1707487227660,-1670.47,0.00041917,31]
[313623357,1707487227689,-557.02051531,0.00041917,31]
[313623358,1707487227719,-500.0,0.00041917,31]
[313623359,1707487227747,-2437.96,0.00041917,31]
[313623360,1707487227775,-885.62,0.00041917,31]
[313623361,1707487227807,-500.0,0.00041917,31]
[313623362,1707487227835,-1332.36,0.00041917,31]
[313623363,1707487227863,-500.0,0.00041917,31]
[313623364,1707487227890,-500.0,0.00041917,31]
[313623365,1707487227918,-969.78,0.00041917,31]
[313623366,1707487227945,-651.87,0.00041917,31]
[313623367,1707487227973,-4470.0,0.00041917,31]
[313623368,1707487228001,-1146.57,0.00041917,31]
[313623369,1707487228028,-500.0,0.00041917,31]
[313623370,1707487228056,-500.0,0.00041917,31]
[313623371,1707487228085,-500.0,0.00041917,31]
[313623372,1707487228286,-1928.88,0.00041917,31]
[313623373,1707487228335,-500.0,0.00041917,31]
[313623374,1707487228363,-500.0,0.00041917,31]
[313623375,1707487228395,-10078.95,0.00041917,31]
[313623376,1707487228425,-1196.87,0.00041917,31]
[313623377,1707487228453,-500.0,0.00041917,31]
[313623378,1707487228594,-4162.47,0.00041917,31]
[313623379,1707487228627,-528.54,0.00041917,31]
[313623380,1707487228657,-2259.42,0.00041917,31]
[313623381,1707487228686,-500.0,0.00041917,31]
[313623382,1707487228716,-1066.85,0.00041917,31]
[313623383,1707487228744,-5424.04,0.00041917,31]
[313623384,1707487228772,-500.0,0.00041917,31]
[313623385,1707487228801,-500.0,0.00041917,31]
[313623386,1707487228831,-1913.56,0.00041917,31]
[313623387,1707487228860,-1793.82,0.00041917,31]
[313623388,1707487228889,-500.0,0.00041917,31]
[313623389,1707487228921,-3060.13,0.00041917,31]
[313623390,1707487228950,-500.0,0.00041917,31]
[313623391,1707487228979,-500.0,0.00041917,31]
[313623392,1707487229008,-500.0,0.00041917,31]
[313623393,1707487229037,-5683.63,0.00041917,31]
[313623394,1707487229067,-1958.55,0.00041917,31]
[313623395,1707487229096,-1516.62,0.00041917,31]
[313623396,1707487229130,-652.08,0.00041917,31]
[313623397,1707487229160,-500.0,0.00041917,31]
[313623398,1707487229188,-500.0,0.00041917,31]
[313623399,1707487229220,-2458.11,0.00041917,31]
[313623400,1707487229249,-502.16,0.00041917,31]
[313623401,1707487229278,-500.0,0.00041917,31]
[313623402,1707487229307,-907.73,0.00041917,31]
[313623403,1707487229336,-4451.57,0.00041917,31]
[313623404,1707487229365,-688.57,0.00041917,31]
[313623405,1707487229395,-639.15663873,0.00041917,31]
[313623406,1707487229424,-500.0,0.00041917,31]
[313623407,1707487229453,-3925.43,0.00041917,31]
[313623408,1707487229482,-500.0,0.00041917,31]
[313623409,1707487229511,-908.3,0.00041917,31]
[313623410,1707487229540,-500.0,0.00041917,31]
[313623411,1707487229570,-157.67551562,0.00041917,31]
[313623412,1707487229598,-500.0,0.00041917,31]
[313623413,1707487229627,-811.04,0.00041917,31]
[313623414,1707487229655,-500.0,0.00041917,31]
[313623415,1707487229683,-2239.6,0.00041917,31]
[313623416,1707487229711,-500.0,0.00041917,31]
[313623417,1707487229743,-500.0,0.00041917,31]
[313623418,1707487229771,-343.16691009,0.00041917,31]
[313623419,1707487229799,-500.0,0.00041917,31]
[313623420,1707487229827,-8191.36,0.00041917,31]
[313623421,1707487229855,-2432.77354991,0.00042,30]
[313623422,1707487229884,-500.0,0.00042,30]
[313623423,1707487229912,-17312.711786,0.00042,30]
[313623424,1707487229941,-5000.0,0.00042,40]
[313623425,1707487229971,-229.0,0.00042,31]
[313623426,1707487229999,-305.147419,0.00042,49]
[313623427,1707487230027,-500.0,0.00042191,31]
[313623428,1707487230058,-500.0,0.00042191,31]
[313623429,1707487230085,-500.0,0.00042191,31]
[313623430,1707487230115,-500.0,0.00042191,31]
[313623431,1707487230143,-500.0,0.00042191,31]
[313623432,1707487230174,-500.0,0.00042191,31]
[313623433,1707487230206,-500.0,0.00042191,31]
[313623434,1707487230235,-500.0,0.00042191,31]
[313623435,1707487230269,-451.22555624,0.00042191,31]
[313623436,1707487230302,-500.0,0.00042191,31]
[313623437,1707487230332,-457.56681852,0.00042191,31]
[313623438,1707487230360,-500.0,0.00042191,31]
[313623439,1707487230389,-500.0,0.00042191,31]
[313623440,1707487230419,-500.0,0.00042191,31]
[313623441,1707487230448,-500.0,0.00042191,31]
[313623442,1707487230480,-500.0,0.00042191,31]
[313623443,1707487230512,-500.0,0.00042191,31]
[313623444,1707487230542,-500.0,0.00042191,31]
[313623445,1707487230571,-500.0,0.00042191,31]
[313623446,1707487230600,-500.0,0.00042191,31]
[313623447,1707487230629,-500.0,0.00042191,31]
[313623448,1707487230659,-500.0,0.00042191,31]
[313623449,1707487230689,-500.0,0.00042191,31]
[313623450,1707487230719,-500.0,0.00042191,31]
[313623451,1707487230748,-500.0,0.00042191,31]
[313623452,1707487230779,-500.0,0.00042191,31]
[313623453,1707487230810,-604.6459786,0.00042191,31]
[313623454,1707487230838,-500.0,0.00042191,31]
[313623455,1707487230867,-500.0,0.00042191,31]
[313623456,1707487230895,-500.0,0.00042191,31]
[313623457,1707487230924,-553.5622559,0.00042191,31]
[313623458,1707487230952,-552.09967663,0.00042191,31]
[313623459,1707487230982,-500.0,0.00042191,31]
[313623460,1707487231012,-500.0,0.00042191,31]
[313623461,1707487231041,-500.0,0.00042191,31]
[313623462,1707487231071,-511.40826333,0.00042191,31]
[313623463,1707487231100,-465.4878592,0.00042191,31]
[313623464,1707487231130,-500.0,0.00042191,31]
[313623465,1707487231158,-500.0,0.00042191,31]
[313623466,1707487231187,-500.0,0.00042191,31]
[313623467,1707487231390,-527.71,0.00042191,31]
[313623468,1707487231480,-500.0,0.00042191,31]
[313623469,1707487231510,-500.0,0.00042191,31]
[313623470,1707487231542,-500.0,0.00042191,31]
[313623471,1707487231571,-500.0,0.00042191,31]
[313623472,1707487231600,-500.0,0.00042191,31]
[313623473,1707487231629,-500.0,0.00042191,31]
[313623474,1707487231660,-500.0,0.00042191,31]
[313623475,1707487231689,-500.0,0.00042191,31]
[313623476,1707487231718,-500.0,0.00042191,31]
[313623477,1707487231746,-500.0,0.00042191,31]
[313623478,1707487231774,-512.51287729,0.00042191,31]
[313623479,1707487231803,-500.0,0.00042191,31]
[313623480,1707487231831,-167.30555628,0.00042191,31]
[313623481,1707487231860,-500.0,0.00042191,31]
[313623482,1707487231888,-500.0,0.00042191,31]
[313623483,1707487231915,-500.0,0.00042191,31]
[313623484,1707487231943,-500.0,0.00042191,31]
[313623485,1707487231971,-500.0,0.00042191,31]
[313623486,1707487231999,-500.0,0.00042191,31]
[313623487,1707487232027,-500.0,0.00042191,31]
[313623488,1707487232055,-500.0,0.00042191,31]
[313623489,1707487232084,-500.0,0.00042191,31]
[313623490,1707487232112,-1417.37,0.00042191,31]
[313623491,1707487232142,-500.0,0.00042191,31]
[313623492,1707487232171,-500.0,0.00042191,31]
[313623493,1707487232200,-500.0,0.00042191,31]
[313623494,1707487232228,-500.0,0.00042191,31]
[313623495,1707487232257,-500.0,0.00042191,31]
[313623496,1707487232293,-500.0,0.00042191,31]
[313623497,1707487232323,-500.0,0.00042191,31]
[313623498,1707487232355,-500.0,0.00042191,31]
[313623499,1707487232386,-249.43310213,0.00042191,31]
[313623500,1707487232417,-500.0,0.00042191,31]
[313623501,1707487232448,-500.0,0.00042191,31]
[313623502,1707487232480,-500.0,0.00042191,31]
[313623503,1707487232511,-500.0,0.00042191,31]
[313623504,1707487232543,-500.0,0.00042191,31]
[313623505,1707487232574,-1448.12,0.00042191,31]
[313623506,1707487232602,-500.0,0.00042191,31]
[313623507,1707487232630,-500.0,0.00042191,31]
[313623508,1707487232658,-500.0,0.00042191,31]
[313623509,1707487232685,-515.83320465,0.00042191,31]
[313623510,1707487232713,-500.0,0.00042191,31]
[313623511,1707487232742,-500.0,0.00042191,31]
[313623512,1707487232771,-500.0,0.00042191,31]
[313623513,1707487232799,-500.0,0.00042191,31]
[313623514,1707487232828,-500.0,0.00042191,31]
[313623515,1707487232855,-498.80626785,0.00042191,31]
[313623516,1707487232883,-500.0,0.00042191,31]
[313623518,1707487232911,-912.23,0.00042191,31]
[313623520,1707487232938,-500.0,0.00042191,31]
[313623521,1707487232965,-500.0,0.00042191,31]
[313623522,1707487232992,-500.0,0.00042191,31]
[313623523,1707487233020,-500.0,0.00042191,31]
[313623524,1707487233047,-500.0,0.00042191,31]
[313623525,1707487233075,-500.0,0.00042191,31]
[313623526,1707487233103,-500.0,0.00042191,31]
[313623527,1707487233136,-870.43,0.00042191,31]
[313623528,1707487233165,-500.0,0.00042191,31]
[313623529,1707487233194,-500.0,0.00042191,31]
[313623530,1707487233221,-511.44059118,0.00042191,31]
[313623531,1707487233249,-500.0,0.00042191,31]
[313623532,1707487233278,-500.0,0.00042191,31]
[313623533,1707487233308,-521.40271854,0.00042191,31]
[313623534,1707487233337,-500.0,0.00042191,31]
[313623535,1707487233366,-162.98378919,0.00042191,31]
[313623536,1707487233397,-500.0,0.00042191,31]
[313623537,1707487233426,-500.0,0.00042191,31]
[313623538,1707487233454,-639.30168,0.00042191,31]
[313623539,1707487233484,-500.0,0.00042191,31]
[313623540,1707487233512,-510.07506651,0.00042191,31]
[313623541,1707487233581,-500.0,0.00042191,31]
[313623542,1707487233611,-500.0,0.00042191,31]
[313623543,1707487233640,-500.0,0.00042191,31]
[313623544,1707487233667,-500.0,0.00042191,31]
[313623545,1707487233694,-500.0,0.00042191,31]
[313623546,1707487233722,-500.0,0.00042191,31]
[313623547,1707487233750,-500.0,0.00042191,31]
[313623548,1707487233777,-500.0,0.00042191,31]
[313623549,1707487233805,-500.0,0.00042191,31]
[313623550,1707487233834,-500.0,0.00042191,31]
[313623551,1707487233860,-157.19564069,0.00042191,31]
[313623552,1707487233893,-500.0,0.00042191,31]
[313623553,1707487233919,-500.0,0.00042191,31]
[313623554,1707487233947,-500.0,0.00042191,31]
[313623555,1707487233974,-500.0,0.00042191,31]
[313623556,1707487234002,-500.0,0.00042191,31]
[313623557,1707487234030,-620.97,0.00042191,31]
[313623558,1707487234060,-500.0,0.00042191,31]
[313623559,1707487234087,-337.704278,0.00042191,31]
[313623560,1707487234118,-500.0,0.00042191,31]
[313623561,1707487234146,-500.0,0.00042191,31]
[313623562,1707487234174,-500.0,0.00042191,31]
[313623563,1707487234202,-500.0,0.00042191,31]
[313623564,1707487234230,-500.0,0.00042191,31]
[313623565,1707487234257,-500.0,0.00042191,31]
[313623566,1707487234285,-564.88,0.00042191,31]
[313623567,1707487234314,-500.0,0.00042191,31]
[313623568,1707487234342,-500.0,0.00042191,31]
[313623569,1707487234374,-500.0,0.00042191,31]
[313623570,1707487234402,-500.0,0.00042191,31]
[313623571,1707487234431,-500.0,0.00042191,31]
[313623572,1707487234458,-500.0,0.00042191,31]
[313623573,1707487234486,-522.40658523,0.00042191,31]
[313623574,1707487234514,-500.0,0.00042191,31]
[313623575,1707487234542,-500.0,0.00042191,31]
[313623576,1707487234571,-500.0,0.00042191,31]
[313623577,1707487234599,-650.82,0.00042191,31]
[313623578,1707487234627,-500.0,0.00042191,31]
[313623579,1707487234655,-500.0,0.00042191,31]
[313623580,1707487234683,-500.0,0.00042191,31]
[313623581,1707487234711,-162.23550092,0.00042191,31]
[313623582,1707487234738,-500.0,0.00042191,31]
[313623583,1707487234766,-500.0,0.00042191,31]
[313623584,1707487234794,-500.0,0.00042191,31]
[313623585,1707487234824,-500.0,0.00042191,31]
[313623586,1707487234853,-500.0,0.00042191,31]
[313623587,1707487234879,-500.0,0.00042191,31]
[313623588,1707487234906,-500.0,0.00042191,31]
[313623589,1707487234934,-500.0,0.00042191,31]
[313623590,1707487234961,-2937.23,0.00042191,31]
[313623591,1707487234988,-500.0,0.00042191,31]
[313623592,1707487235016,-500.0,0.00042191,31]
[313623593,1707487235045,-500.0,0.00042191,31]
[313623594,1707487235074,-500.0,0.00042191,31]
[313623595,1707487235104,-500.0,0.00042191,31]
[313623596,1707487235134,-500.0,0.00042191,31]
[313623597,1707487235162,-500.0,0.00042191,31]
[313623598,1707487235192,-167.38390351,0.00042191,31]
[313623599,1707487235223,-500.0,0.00042191,31]
[313623600,1707487235253,-500.0,0.00042191,31]
[313623601,1707487235285,-500.0,0.00042191,31]